Cogmind - Beta 13 @@@ ROGUE MODE // 2024.05.16 @ 18:01:26 Player: Gabe+Kate4EVR Result: Destroyed by Y-45 Defender with Beam Rifle Performance ------------- Evolutions (2) 1000 Regions Visited (3) 600 Robots Destroyed (31) 155 Value Destroyed (760) 760 Prototype IDs (3) 60 Alien Tech Used (0) 0 Bonus (0) 0 TOTAL SCORE: 2575 Bonus ------- None Cogmind --------- Core Integrity 0/550 Matter 177/300 Energy 100/100 System Corruption 0% Temperature Cool (9) Movement Core (50) Location -8/Materials Parts ------- > --- POWER (1) -------- (None) > --- PROPULSION (6) --- (None) > --- UTILITY (2) ------ Advanced Visual Processing Unit > --- WEAPON (2) ------- Mini Grenade Launcher Mini Grenade Launcher > --- INVENTORY (5) ---- Particle Charger Particle Charger Plasma Cutter Peak State ------------ > --- POWER ------------ Ion Engine > --- PROPULSION ------- Aluminum Leg Wheel Wheel Flight Unit > --- UTILITY ---------- Huge Storage Unit Targeting Computer > --- WEAPON ----------- Assault Cannon Assault Cannon > --- INVENTORY -------- Flight Unit Cooling System Particle Charger Particle Charger Particle Charger Particle Charger Medium Laser Light Assault Rifle Assault Cannon Assault Cannon Grenade Launcher Grenade Launcher [Rating: 15] Favorites ----------- Power Ion Engine Engine Ion Engine Propulsion Aluminum Leg Leg Aluminum Leg Wheel Wheel Flight Unit Flight Unit Utility Targeting Computer Device Structural Scanner Storage Small Storage Unit Processor Targeting Computer Protection Light Armor Plating Weapon Medium Laser Energy Gun Medium Laser Ballistic Gun Light Assault Rifle Ballistic Cannon Assault Cannon Launcher Grenade Launcher Build | -11 -10 -9 -8 ------- Run | Yrd Mat Mat Mat Slots Evolved 4 | . . 2 2 Power . | . . . . Propulsion 4 | . . 2 2 Utility . | . . . . Weapon . | . . . . Parts Attached 51 | 6 18 12 15 Power 5 | 1 2 1 1 Engine 5 | 1 2 1 1 Core . | . . . . Reactor . | . . . . Propulsion 18 | 2 4 7 5 Treads . | . . . . Leg 7 | 2 . 1 4 Wheel 2 | . . 2 . Hover . | . . . . Flight 9 | . 4 4 1 Utility 6 | 1 3 1 1 Device 1 | . 1 . . Storage 2 | 1 . 1 . Processor 2 | . 1 . 1 Hackware . | . . . . Protection 1 | . 1 . . Artifact . | . . . . Weapon 22 | 2 9 3 8 Energy Gun 6 | . 3 1 2 Energy Cannon . | . . . . Ballistic Gun 7 | 2 4 . 1 Ballistic Cannon 5 | . 1 2 2 Launcher 4 | . 1 . 3 Special Weapon . | . . . . Impact Weapon . | . . . . Slashing Weapon . | . . . . Piercing Weapon . | . . . . Special Melee Weapon . | . . . . Unidentified Prototypes 1 | . . . 1 Corrupted Parts 2 | . 2 . . System Corruption 12 | . 12 . . Parts Lost 19 | . 1 3 15 Power 3 | . . 1 2 Propulsion 11 | . 1 2 8 Utility 1 | . . . 1 Weapon 4 | . . . 4 Highest Loss Streak 5 | . 1 2 5 To Critical Strikes . | . . . . Average Slot Usage (%) 76 | . 93 83 41 Engine 10 | . 14 10 4 Leg 14 | . 22 11 9 Wheel 3 | . . 7 . Flight 7 | . . 12 6 Device 1 | . 3 . . Storage 8 | . 14 9 . Processor 9 | . 3 11 15 Protection 1 | . 6 . . Energy Gun 6 | . 9 6 1 Ballistic Gun 6 | . 12 4 2 Ballistic Cannon 6 | . 4 10 1 Naked Turns . | . . . . Heaviest Build 95 | 10 17 95 11 Greatest Support 32 | 20 20 20 32 Greatest Overweight (x) 9 | . 3 9 2 Average Overweight (x) 1 | . . 3 . Largest Inventory Capacity 25 | 8 8 25 5 Average Capacity 10 | 6 8 15 5 Most Carried 14 | 1 8 14 5 Average Carried 6 | . 6 9 3 Final Capacity 8 | 8 8 5 5 Final Carried 7 | 1 7 5 3 Class Distribution -------------------- 92% | Mutant 7% | Scavenger-Mutant Dominant Class ---------------- Mutant | -10/Materials Mutant | -9/Materials Mutant | -8/Materials Resources | -11 -10 -9 -8 ----------- Run | Yrd Mat Mat Mat Matter Collected 792 | 169 127 123 373 Remotely . | . . . . Salvage Created 743 | . 261 120 362 Parts 46 | . 20 9 17 Haulers Intercepted . | . . . . Recyclers Shooed . | . . . . Parts Field Recycled . | . . . . Retrieved Matter . | . . . . Parts Self-Destructed . | . . . . Prevented . | . . . . Kills | -11 -10 -9 -8 ------- Run | Yrd Mat Mat Mat Combat Hostiles Destroyed 23 | . 10 4 9 Guns 9 | . 1 3 5 Cannons 5 | . 4 1 . AOE 9 | . 5 . 4 Classes Destroyed 8 | . 3 3 2 Worker 2 | . . 1 1 Builder 1 | . . . 1 Tunneler 1 | . . 1 . Recycler 2 | . 2 . . Mechanic 1 | . . . 1 Watcher 1 | . . 1 . Swarmer 10 | . 6 4 . Grunt 13 | . 4 . 9 Best Kill Streak 7 | . 7 3 5 Combat Bots Only 7 | . 7 3 5 Max Kills in Single Turn 3 | . 3 1 2 Gunslinging . | . . . . Exploded 2 | . 2 . 1 Melee . | . . . . Uniques/NPCs Destroyed . | . . . . Combat | -11 -10 -9 -8 -------- Run | Yrd Mat Mat Mat Hostile Shots Fired 255 | . 49 65 141 Missed 81 | . 18 20 43 Damage Taken 2442 | . 338 432 1672 Core 687 | . 21 116 550 Absorbed by Shields . | . . . . Core Remaining (%) 87 | 100 91 71 . Volleys Fired 69 | . 20 17 32 Largest 2 | . 2 2 2 Hottest 94 | . 70 94 94 Shots Fired 110 | . 40 28 42 Gun 64 | . 23 17 24 Cannon 33 | . 14 11 8 Launcher 13 | . 3 . 10 Special . | . . . . Kinetic 70 | . 31 13 26 Thermal 27 | . 6 15 6 Explosive 13 | . 3 . 10 Electromagnetic . | . . . . Robot Hit Streak 15 | . 9 4 15 Robot Miss Streak 6 | . 6 2 2 Penetration Max . | . . . . Secondary Targets . | . . . . Shots Hit Robots 72 | . 22 15 35 Core Hits 61 | . 21 7 33 Critical Kills . | . . . . Critical Parts Destroyed . | . . . . Critical Strikes 3 | . . 2 1 Burn 3 | . . 2 1 Melee Attacks . | . . . . Impact . | . . . . Slashing . | . . . . Piercing . | . . . . Sneak Attacks . | . . . . Combat Hostiles . | . . . . Follow-up Attacks . | . . . . Damage Inflicted 2197 | . 818 240 1139 Guns 585 | . 102 136 347 Cannons 468 | . 199 97 172 Explosions 1101 | . 517 . 584 Melee . | . . . . Ramming 43 | . . 7 36 Kinetic 839 | . 263 121 455 Thermal 228 | . 52 112 64 Explosive 916 | . 332 . 584 Electromagnetic 171 | . 171 . . Impact . | . . . . Slashing . | . . . . Piercing . | . . . . Highest Corruption 12 | . 12 . . Average Corruption 10 | . 10 . . Corruption Purged . | . . . . Corruption Blocked . | . . . . Overload Shots . | . . . . Overflow Damage 41 | . 3 . 38 Projectiles . | . . . . Explosions 41 | . 3 . 38 Melee . | . . . . Knockbacks 8 | . 3 2 3 Impact . | . . . . Kinetic 8 | . 3 2 3 Secondary . | . . . . Self-Inflicted Damage 180 | . 13 3 164 Shots 8 | . 2 . 6 Rammed 2 | . . 1 1 Targets Rammed 23 | . . 1 22 Kicked 21 | . . . 21 Crushed . | . . . . Highest Temperature 145 | . 90 145 66 Average Temperature 39 | . 37 59 22 Received Heat Transfer 993 | . 102 99 792 Siege Activations . | . . . . Robots Corrupted . | . . . . Combat Hostiles . | . . . . Parts Fried . | . . . . Impact Corruptions . | . . . . Robots Melted . | . . . . Combat Hostiles . | . . . . Parts Melted 1 | . 1 . . Heat Transferred 901 | . 161 481 259 Parts Sabotaged . | . . . . Parts Stolen . | . . . . Parts Stripped . | . . . . Power Chain Reactions 1 | . 1 . . Alert | -11 -10 -9 -8 ------- Run | Yrd Mat Mat Mat Peak Influence 398 | . 322 149 398 Initial 135 | . . 135 62 Average 151 | . 184 98 238 Maximum Alert Level 1 | . 1 . 1 Low Security (%) 72 | 100 52 100 41 Level 1 27 | . 47 . 58 Level 2 . | . . . . Level 3 . | . . . . Level 4 . | . . . . Level 5 . | . . . . High Security . | . . . . Max Security . | . . . . Squads Dispatched 4 | . 2 . 2 Investigation 1 | . 1 . . Extermination . | . . . . Reinforcement 2 | . 1 . 1 Assault . | . . . . Garrison 1 | . . . 1 Intercept . | . . . . Searches Triggered . | . . . . Construction Impeded . | . . . . Haulers Reinforced . | . . . . Active Scanning Responses . | . . . . Cargo Convoy Interrupts . | . . . . Stealth | -11 -10 -9 -8 --------- Run | Yrd Mat Mat Mat Distress Signals 2 | . . . 2 Communications Jammed . | . . . . Distress Signals . | . . . . Times Spotted 51 | . 12 10 29 Peak Tracking Total 13 | . 7 6 13 Tactical Retreats 6 | . . 2 4 Traps | -11 -10 -9 -8 ------- Run | Yrd Mat Mat Mat Traps Triggered 1 | . 1 . . Indirectly 1 | . 1 . . Trap Hack Attempts . | . . . . Triggered . | . . . . Disarmed . | . . . . Reprogrammed . | . . . . Reused . | . . . . Traps Extracted . | . . . . Installed . | . . . . Triggered . | . . . . Machines | -11 -10 -9 -8 ---------- Run | Yrd Mat Mat Mat Machines Disabled 4 | . 3 . 1 Max in Single Turn 3 | . 3 . 1 Machines Repaired . | . . . . Machines Dismantled . | . . . . Machines Sabotaged . | . . . . Overloaded Fab Kills . | . . . . Hacking | -11 -10 -9 -8 --------- Run | Yrd Mat Mat Mat Machines Accessed 3 | . 2 1 . Terminals 3 | . 2 1 . Fabricators . | . . . . Repair Stations . | . . . . Recycling Units . | . . . . Scanalyzers . | . . . . Garrison Access . | . . . . Total Hacks 7 | . 5 2 . Successful 2 | . 1 1 . Failed 5 | . 4 1 . Catastrophic 1 | . 1 . . Database Lockouts . | . . . . Manual 6 | . 4 2 . Terminals 7 | . 5 2 . Fabricators . | . . . . Repair Stations . | . . . . Recycling Units . | . . . . Scanalyzers . | . . . . Garrison Access . | . . . . Terminal Hacks 2 | . 1 1 . Prototype ID Bank 1 | . 1 . . Unreport Threat 1 | . . 1 . Fabricator Hacks . | . . . . Repair Station Hacks . | . . . . Recycling Unit Hacks . | . . . . Scanalyzer . | . . . . Garrison Access Hacks . | . . . . Unauthorized Hacks . | . . . . Terminals . | . . . . Fabricators . | . . . . Repair Stations . | . . . . Recycling Units . | . . . . Scanalyzers . | . . . . Garrison Access . | . . . . Data Cores Recovered . | . . . . Used . | . . . . Hacking Detections 2 | . 1 1 . Full Trace Events 1 | . 1 . . Feedback Events . | . . . . Feedback Blocked . | . . . . Robot Schematics Acquired . | . . . . Robots Built . | . . . . Authchips . | . . . . Time . | . . . . Total Robot Build Rating . | . . . . Part Schematics Acquired . | . . . . Parts Built . | . . . . Authchips . | . . . . Time . | . . . . Total Part Build Rating . | . . . . Parts Repaired . | . . . . Time . | . . . . Parts Recycled . | . . . . Recycled Matter . | . . . . Retrieved Matter . | . . . . Retrieved Components . | . . . . Parts Scanalyzed . | . . . . Part Schematics Acquired . | . . . . Parts Damaged . | . . . . Bothacking | -11 -10 -9 -8 ------------ Run | Yrd Mat Mat Mat Used RIF Installer . | . . . . Robots Hacked . | . . . . Non-combat . | . . . . Combat . | . . . . Robot Hacks Applied . | . . . . Relay Couplers Released . | . . . . Fabnet Peak Effective % . | . . . . Robots Rewired . | . . . . Allies Hacked . | . . . . Hacks Repelled . | . . . . Allies | -11 -10 -9 -8 -------- Run | Yrd Mat Mat Mat Total Allies . | . . . . Largest Group . | . . . . Highest-Rated Group . | . . . . Highest-Rated Ally . | . . . . Total Orders . | . . . . Ally Attacks . | . . . . Total Damage . | . . . . Kills . | . . . . Allies Corrupted . | . . . . Allies Melted . | . . . . Intel | -11 -10 -9 -8 ------- Run | Yrd Mat Mat Mat Robot Analysis Total . | . . . . Derelict Logs Recovered . | . . . . Drone Launches . | . . . . Drone Recoveries . | . . . . Exploration | -11 -10 -9 -8 ------------- Run | Yrd Mat Mat Mat Turns Passed 1319 | 60 396 564 299 Spaces Moved 824 | 44 208 312 260 Core 13 | 3 . . 10 Treads . | . . . . Legs 425 | 41 207 100 77 Wheels 148 | . . 148 . Hover . | . . . . Flight 238 | . 1 64 173 Fastest Speed 34 | 50 120 44 34 Average Speed 121 | 115 141 154 66 Slowest Speed 750 | 120 280 750 150 Overloaded Moves . | . . . . Propulsion Burnouts . | . . . . Robots Hopped 9 | . . 1 8 Cave-ins Triggered . | . . . . Exploration Rate (%) 23 | 3 37 25 27 Regions Visited 3 Branch Regions . Pre-discovered Areas . | . . . . Known Exits Taken . | . . . . Unknown Exits Taken 3 | 1 1 1 . Scrap Searched . | . . . . Spaces Dug . | . . . . Terrain Destroyed 100 | . 15 5 80 Melee . | . . . . Projectile 6 | . . 5 1 AOE 94 | . 15 . 79 Terrain Rammed . | . . . . Walls Destroyed . | . . . . Machines Disabled . | . . . . Actions | -11 -10 -9 -8 --------- Run | Yrd Mat Mat Mat Total 1024 | 50 272 365 337 Wait 24 | . 8 3 13 Move 803 | 43 207 309 244 Hop 9 | . . 1 8 Pick Up 19 | 1 8 10 . Fast Attach 33 | 6 7 9 11 Attach 4 | . 1 . 3 Detach 4 | . 1 2 1 Swap 14 | . 10 3 1 Drop 21 | . 9 10 2 Fire 69 | . 20 17 32 Melee . | . . . . Ram 2 | . . 1 1 Kick 21 | . . . 21 Crush . | . . . . Escape Stasis . | . . . . Rewire 1 | . 1 . . Trap . | . . . . Miscellaneous . | . . . . Route ------- -11/Scrapyard -10/Materials -9/Materials -8/Materials History --------- Turn | Location | Event 4 | -11/Scrapyard | Discovered new exit (range 16) 61 | -11/Scrapyard | Entered Materials 303 | -10/Materials | Build established: Mutant 346 | -10/Materials | Destroyed 7 combat bots 385 | -10/Materials | Discovered new exit (range 16) 454 | -10/Materials | System corruption reached 10% 457 | -10/Materials | Entered another Materials area 457 | -9/Materials | Evolved 2 slots: Propulsion x2 998 | -9/Materials | Discovered new exit (range 15) 1021 | -9/Materials | Entered another Materials area 1021 | -8/Materials | Evolved 2 slots: Propulsion x2 1108 | -8/Materials | Lost 5 parts (1p3n1w) 1216 | -8/Materials | Core integrity fell below 50% 1244 | -8/Materials | Lost 5 parts (2n3w) 1312 | -8/Materials | Garrison activated, responded to threat 1313 | -8/Materials | Core integrity fell below 20% 1320 | -8/Materials | Destroyed by Y-45 Defender with Beam Rifle Last Messages --------------- 01270_ Kicked A-02 Transporter. 01280_ Kicked U-05 Engineer. 01305_ M-13 Machinist repairs U-05 Engineer. 01306_ Acquired Mni. Grenade Launcher. 01306_ Targeting Computer destroyed. 01308_ G-47 Trooper destroyed. 01312_ Aluminum Leg destroyed. 01312_ Destroyed Aluminum Leg. 01312_ U-05 Engineer destroyed. 01312_ U-05 Engineer calls for garrison support. 01312_ ALERT: Activating Garrison Access M001. 01313_ Y-45 Defender emerges from the garrison. 01313_ Lgt. Angular Momentum Engine destroyed. 01315_ Acquired Mni. Grenade Launcher. 01315_ Carbon-fiber Leg destroyed. 01316_ W-25 Informer sends out distress signal. 01316_ G-47 Trooper destroyed. 01317_ U-05 Engineer lays Concrete. 01319_ U-05 Engineer builds a Wall. 01319_ M-13 Machinist destroyed. Map ----- +----------------------------------------------------+ | ???????????????????????????????????????# #?? | | ???????????????????????????????????????# #?? | | ???????????????????????????????????????# #?? | | ???????????????????????????????????????# #?? | | ???????????????????????????????????????# #?? | | ???????????????????????????????????????# #?? | | ???????????????????????????????????????# #?? | | ???????????????????????????????????????# #?? | | ???????????????????????????????????????# #?? | | ???????????????????????????????????????# #?? | | ???????????????????????????????????????# #?? | | ?????????????????????????????#########?# #?? | | ?????????????????????????????# #?# #?? | | ?????????????????????????????+ #?# #?? | | ???????????????????????####### ###/### | | ???????????????????????# #?? # | | ???????????????????????# ????? # | | ???????????????????????# #######+## | | ??????????????########## + | | ??????????????# # # ! ## "T" | | ??????????# ??# " ? # ""## """ | | ??????????# ?# "G" # ?# Y"######## | | ??????????# # "Y" ? # ""#??????? | | ??????????? + ! # # #??????? | | ??????????# #w% ] # ! #??????? | | ??????????# # == @ # ##### #??????? | | ??????????# # = Y #??# #??????? | | ??????????# # =]Y ! ##??# #??????? | | ??????????# ### #???# #??????? | | ??????????# #?# # #???# #??????? | | ??????????# #?##### # #????! ??????? | | ??????????# #??????## # #???? ??????? | | ??????????# ############### #????!???????? | | ??????????# # #??## ##???????????? | | ??????????# # """ #??# #???????????? | | ??????????# # """""#??# #???????????? | | ??????????# # "" " #### #???????????? | | ??????????+ / ### ##???????????? | | ??????????# # =%* ## ###### #? | | ??????????# # / "" ?? | | ??????????# # ## ###### S""??? | | ???######## ## ### #????????????? | | ???# """ # ### # # ##?# #????????????? | | ???# """ # #?##??######??# #????????????? | | ???# """ + #?????????????# #????????????? | | ???# # #?????????###?# #????????????? | | ???# # #????????!!!#?# #????????????? | | ???# [ # #???????!!!!#?# #????????????? | | ?########+########??? #?? ?????????????? | | ?# # ## ### # #??????????? | +----------------------------------------------------+ Best States ------------- Heat Dissipation 31 Energy Generation 18 Energy Capacity 250 Matter Stores 263 Matter Capacity 300 Sight Range 20 Terrain Scan Density 10 Armor Coverage 150 Evasion (%) 63 Targeting Accuracy 5 Item Schematics ----------------- None Robot Schematics ------------------ None Fabricated ------------ Nothing Alien Tech Used ----------------- None Achievements -------------- None Challenges ------------ None Game ------ Seed VortexAssembledAxe Manual? 0 Play Time 00:09:03 Cumulative 167.3 hours Start 2024.05.16 @ 17:51:14 End 2024.05.16 @ 18:01:26 Sessions 1 Manual Loads 0 Difficulty Rogue Special Mode None Game No. 332 Rogue 332 Adventurer 0 Explorer 0 Win Type - Total 0 Types 0/0/0/0/0/0/0/0/0 Lore% 46 Gallery% 63 Achievement% 44 Wizard Run 0 Options --------- Layout 0 ASCII 0 Keyboard 1 Movement Numpad Keybinds 0 Fullscreen 2 Font 18/X11 Map View 76x50 Zoom Use 0% Tactical HUD 1 Map Filters NONE Filters NONE Steam 1 RUN: 3ffd4e94-f7ba-480f-9c92-46a42165a0ab